Cogmind - Beta 10.1 @@@ ROGUE MODE // 2020.09.23 @ 22:10:23 Player: MC HELL Result: Destroyed by G-34 Mercenary with Small Laser Performance ------------- Evolutions (0) 0 Regions Visited (1) 200 Robots Destroyed (4) 20 Value Destroyed (138) 138 Prototype IDs (0) 0 Alien Tech Used (0) 0 Bonus (0) 0 TOTAL SCORE: 358 Bonus ------- None Cogmind --------- Core Integrity 0/250 Matter 214/300 Energy 100/100 System Corruption 0% Temperature Cool (15) Movement Walking (210) Ox3 Location -10/Materials Parts ------- > --- POWER (1) -------- (None) > --- PROPULSION (2) --- Aluminum Leg > --- UTILITY (2) ------ High-capacity Storage Unit > --- WEAPON (2) ------- (None) > --- INVENTORY (12) --- Ion Engine Light Treads Light Treads Aluminum Leg Aluminum Leg Aluminum Leg Wheel Small Laser Peak State ------------ > --- POWER ------------ Ion Engine > --- PROPULSION ------- Wheel Wheel > --- UTILITY ---------- Small Storage Unit Core Shielding > --- WEAPON ----------- Light Assault Rifle Grenade Launcher > --- INVENTORY -------- Light Treads Light Treads Aluminum Leg Aluminum Leg Small Laser Small Laser [Rating: 7] Favorites ----------- Power Ion Engine Engine Ion Engine Propulsion Wheel Leg Aluminum Leg Wheel Wheel Utility Core Shielding Storage High-capacity Storage Unit Protection Core Shielding Weapon Light Assault Rifle Energy Gun Small Laser Ballistic Gun Light Assault Rifle Launcher Grenade Launcher Build | -11 -10 ------- Run | Scr Mat Slots Evolved . | . . Power . | . . Propulsion . | . . Utility . | . . Weapon . | . . Parts Attached 15 | 7 8 Power 2 | 2 . Engine 2 | 2 . Core . | . . Reactor . | . . Propulsion 6 | 3 3 Treads . | . . Leg 4 | 1 3 Wheel 2 | 2 . Hover . | . . Flight . | . . Utility 3 | 1 2 Device . | . . Storage 2 | 1 1 Processor . | . . Hackware . | . . Protection 1 | . 1 Artifact . | . . Weapon 4 | 1 3 Energy Gun 2 | . 2 Energy Cannon . | . . Ballistic Gun 1 | 1 . Ballistic Cannon . | . . Launcher 1 | . 1 Special Weapon . | . . Impact Weapon . | . . Slashing Weapon . | . . Piercing Weapon . | . . Special Melee Weapon . | . . Unidentified Prototypes . | . . Parts Lost 7 | . 7 Power 1 | . 1 Propulsion 2 | . 2 Utility 1 | . 1 Weapon 3 | . 3 Highest Loss Streak 6 | . 6 Average Slot Usage (%) 90 | . 90 Engine 14 | . 14 Leg 1 | . 1 Wheel 24 | . 24 Storage 14 | . 14 Protection 12 | . 12 Energy Gun 2 | . 2 Ballistic Gun 12 | . 12 Launcher 7 | . 7 Naked Turns . | . . Heaviest Build 42 | 10 42 Greatest Support 20 | 20 20 Greatest Overweight (x) 2 | . 2 Average Overweight (x) . | . 1 Largest Inventory Capacity 12 | 6 12 Average Capacity 9 | 5 10 Most Carried 9 | 6 9 Average Carried 6 | 4 7 Final Capacity 12 | 6 12 Final Carried 8 | 6 8 Class Distribution -------------------- 100% | Mutant Dominant Class ---------------- Mutant | -10/Materials Resources | -11 -10 ----------- Run | Scr Mat Matter Collected 264 | 230 34 Remotely . | . . Salvage Created 96 | . 96 Parts 7 | . 7 Haulers Intercepted . | . . Recyclers Shooed 2 | . 2 Parts Field Recycled . | . . Retrieved Matter . | . . Parts Self-Destructed . | . . Prevented . | . . Kills | -11 -10 ------- Run | Scr Mat Combat Hostiles Destroyed 3 | . 3 Guns 1 | . 1 AOE 2 | . 2 Classes Destroyed 2 | . 2 Watcher 1 | . 1 Grunt 3 | . 3 Best Kill Streak 3 | . 3 Combat Bots Only 2 | . 2 Max Kills in Single Turn 1 | . 1 Gunslinging . | . . Exploded 1 | . 1 Melee . | . . Uniques/NPCs Destroyed . | . . Combat | -11 -10 -------- Run | Scr Mat Damage Taken 841 | . 841 Core 253 | . 253 Absorbed by Shields . | . . Core Remaining (%) 100 | 100 . Volleys Fired 21 | . 21 Largest 2 | . 2 Hottest 60 | . 60 Shots Fired 33 | . 33 Gun 28 | . 28 Cannon . | . . Launcher 5 | . 5 Special . | . . Kinetic 20 | . 20 Thermal 8 | . 8 Explosive 5 | . 5 Electromagnetic . | . . Robot Hit Streak 6 | . 6 Robot Miss Streak 6 | . 6 Penetration Max . | . . Secondary Targets . | . . Shots Hit Robots 16 | . 16 Core Hits 12 | . 12 Critical Hits . | . . Critical Kills . | . . Critical Parts Destroyed . | . . Melee Attacks . | . . Impact . | . . Slashing . | . . Piercing . | . . Sneak Attacks . | . . Combat Hostiles . | . . Follow-up Attacks . | . . Damage Inflicted 380 | . 380 Guns 166 | . 166 Cannons . | . . Explosions 202 | . 202 Melee . | . . Ramming 12 | . 12 Kinetic 87 | . 87 Thermal 79 | . 79 Explosive 202 | . 202 Electromagnetic . | . . Impact . | . . Slashing . | . . Piercing . | . . Highest Corruption . | . . Average Corruption . | . . Corruption Purged . | . . Overload Shots . | . . Overflow Damage 13 | . 13 Projectiles . | . . Explosions 13 | . 13 Melee . | . . Knockbacks . | . . Impact . | . . Kinetic . | . . Secondary . | . . Self-Inflicted Damage 147 | . 147 Shots 2 | . 2 Rammed 8 | . 8 Targets Rammed 10 | . 10 Kicked 2 | . 2 Crushed . | . . Highest Temperature 64 | . 64 Average Temperature 21 | . 21 Received Heat Transfer 387 | . 387 Siege Activations . | . . Robots Corrupted . | . . Combat Hostiles . | . . Parts Fried . | . . Impact Corruptions . | . . Robots Melted . | . . Combat Hostiles . | . . Parts Melted . | . . Heat Transferred 175 | . 175 Parts Sabotaged . | . . Parts Stolen . | . . Parts Stripped . | . . Power Chain Reactions . | . . Missiles Intercepted . | . . Alert | -11 -10 ------- Run | Scr Mat Peak Influence 121 | . 121 Initial . | . . Average 33 | . 45 Maximum Alert Level . | . . Low Security (%) 100 | 100 100 Level 1 . | . . Level 2 . | . . Level 3 . | . . Level 4 . | . . Level 5 . | . . High Security . | . . Max Security . | . . Squads Dispatched 2 | . 2 Investigation . | . . Extermination . | . . Reinforcement 2 | . 2 Assault . | . . Garrison . | . . Intercept . | . . Construction Impeded . | . . Haulers Reinforced . | . . Stealth | -11 -10 --------- Run | Scr Mat Distress Signals 2 | . 2 Communications Jammed . | . . Distress Signals . | . . Times Spotted 12 | . 12 Peak Tracking Total 5 | . 5 Tactical Retreats . | . . Traps | -11 -10 ------- Run | Scr Mat Traps Triggered . | . . Indirectly . | . . Trap Hack Attempts . | . . Triggered . | . . Disarmed . | . . Reprogrammed . | . . Reused . | . . Traps Extracted . | . . Installed . | . . Triggered . | . . Machines | -11 -10 ---------- Run | Scr Mat Machines Disabled 2 | . 2 Max in Single Turn 2 | . 2 Machines Sabotaged . | . . Garrisons Compromised . | . . Overloaded Fab Kills . | . . Fab Network Shutdowns . | . . Hacking | -11 -10 --------- Run | Scr Mat Machines Accessed 1 | . 1 Terminals 1 | . 1 Fabricators . | . . Repair Stations . | . . Recycling Units . | . . Scanalyzers . | . . Garrison Access . | . . Total Hacks 2 | . 2 Successful 2 | . 2 Failed . | . . Catastrophic . | . . Database Lockouts . | . . Manual . | . . Terminals 2 | . 2 Fabricators . | . . Repair Stations . | . . Recycling Units . | . . Scanalyzers . | . . Garrison Access . | . . Terminal Hacks 2 | . 2 Dispatch Records 1 | . 1 Hauler Manifests 1 | . 1 Fabricator Hacks . | . . Repair Station Hacks . | . . Recycling Unit Hacks . | . . Scanalyzer . | . . Garrison Access Hacks . | . . Unauthorized Hacks . | . . Terminals . | . . Fabricators . | . . Repair Stations . | . . Recycling Units . | . . Scanalyzers . | . . Garrison Access . | . . Data Cores Recovered . | . . Used . | . . Hacking Detections 1 | . 1 Full Trace Events . | . . Feedback Events . | . . Feedback Blocked . | . . Robot Schematics Acquired . | . . Robots Built . | . . Matter . | . . Time . | . . Total Robot Build Rating . | . . Part Schematics Acquired . | . . Parts Built . | . . Matter . | . . Time . | . . Total Part Build Rating . | . . Parts Repaired . | . . Time . | . . Parts Recycled . | . . Recycled Matter . | . . Retrieved Matter . | . . Retrieved Components . | . . Parts Scanalyzed . | . . Part Schematics Acquired . | . . Parts Damaged . | . . Bothacking | -11 -10 ------------ Run | Scr Mat Used RIF Installer . | . . Robots Hacked . | . . Non-combat . | . . Combat . | . . Robot Hacks Applied . | . . Relay Couplers Released . | . . Robots Rewired . | . . Allies Hacked . | . . Hacks Repelled . | . . Allies | -11 -10 -------- Run | Scr Mat Total Allies . | . . Largest Group . | . . Highest-Rated Group . | . . Highest-Rated Ally . | . . Total Orders . | . . Ally Attacks . | . . Total Damage . | . . Kills . | . . Allies Corrupted . | . . Allies Melted . | . . Intel | -11 -10 ------- Run | Scr Mat Robot Analysis Total . | . . Derelict Logs Recovered . | . . Drone Launches . | . . Drone Recoveries . | . . Exploration | -11 -10 ------------- Run | Scr Mat Turns Passed 218 | 57 161 Spaces Moved 138 | 55 83 Core 16 | 16 . Treads . | . . Legs 2 | 2 . Wheels 120 | 37 83 Hover . | . . Flight . | . . Fastest Speed 50 | 50 80 Average Speed 83 | 72 90 Slowest Speed 120 | 120 100 Overloaded Moves . | . . Propulsion Burnouts . | . . Robots Hopped . | . . Cave-ins Triggered . | . . Exploration Rate (%) 10 | 3 17 Regions Visited 1 Branch Regions . Pre-discovered Areas . | . . Known Exits Taken . | . . Unknown Exits Taken 1 | 1 . Scrap Searched . | . . Spaces Dug . | . . Terrain Destroyed 22 | . 22 Melee . | . . Projectile . | . . AOE 22 | . 22 Terrain Rammed . | . . Walls Destroyed . | . . Machines Disabled . | . . Actions | -11 -10 --------- Run | Scr Mat Total 200 | 70 130 Wait 2 | . 2 Move 137 | 54 83 Hop . | . . Pick Up 13 | 8 5 Fast Attach 4 | 3 1 Attach 5 | 2 3 Detach . | . . Swap 6 | 2 4 Drop 2 | 1 1 Fire 21 | . 21 Melee . | . . Ram . | . . Kick 10 | . 10 Crush . | . . Escape Stasis . | . . Rewire . | . . Trap . | . . Miscellaneous . | . . Route ------- -11/Scrapyard -10/Materials History --------- Turn | Location | Event 15 | -11/Scrapyard | Discovered new exit (range 16) 58 | -11/Scrapyard | Entered Materials 208 | -10/Materials | Core integrity fell below 50% 217 | -10/Materials | Core integrity fell below 20% 219 | -10/Materials | Destroyed by G-34 Mercenary with Small Laser Last Messages --------------- U-05 Engineer builds a Wall. K-01 Serf collects debris. U-05 Engineer lays Concrete. Slammed into G-47 Trooper. U-05 Engineer lays Concrete. U-05 Engineer builds a Wall. U-05 Engineer lays Concrete. Slammed into G-47 Trooper. ALERT: Hostiles spotted, dispatching reinforcements to Terminal M002. K-01 Serf collects debris. U-05 Engineer lays Concrete. Ion Engine destroyed. U-05 Engineer lays Concrete. Slammed into G-47 Trooper. Destabilizing: Core damaged (-2). U-05 Engineer lays Concrete. Slammed into G-47 Trooper. Core Shielding destroyed. K-01 Serf collects debris. U-05 Engineer lays Concrete. Map ----- +----------------------------------------------------+ | ???????????????????????????????????????????? | | ???????????????????????????????????????????? | | ???????????????????????????????????????????? | | ???????????????????????????????????????????? | | ???????????????????????????????????????????? | | ???????????????????????????????????????????? | | ???????????????????????????????????????????? | | ???????????????????? ????????????????????? | | ???????????????????? #???????????????????? | | ???????????????????? # ??????????????????? | | ???????????????????? ??????????????????? | | ???????????????????? ???????????????????? | | ???????????????????? ???????????????????? | | ???????????????????? ^ #???????????????????? | | ????????########???# #???????????????????? | | ????????#! #???# #???????????????????? | | ????????# #???# #???????????????????? | | ????????# ! #???# #???????????????????? | | ????????# #?### # ??? ?????????????? | | ????????# k #?# # # ???????????????? | | ??????### ### # # ""???????????????? | | ?????##T#### ### # """"??????????????? | | ?????# = # """"??????????????? | | ?????# uugg # """"??????????????? | | ?????# "" # """??????????????? | | ?????# " @g### #???????????? | | ?????# u ###?#######???????????? | | ###### #????????????????????? | | # # u # ?????????????????? | | # # # ??????????????? | | # # o + """""???????????????? | | # # # """""???????????????? | | # + ###k### #?"""""???????????????? | | # # ## # #? ???????????????????? | | #![ # ## # #? ???????????????????? | | # ! # ## # #?????????????????????? | | # ###### # #?????????????????????? | | ######????# # ????????????????????? | | ??????????# # ???????????????????? | | ??????????# # ??????????????????? | | ??????????# ########+##?????????????????? | | ??????????# #???????????????????????????? | | ??????????######???????????????????????????? | | ???????????????????????????????????????????? | | ???????????????????????????????????????????? | | ???????????????????????????????????????????? | | ???????????????????????????????????????????? | | ???????????????????????????????????????????? | | ???????????????????????????????????????????? | | ???????????????????????????????????????????? | +----------------------------------------------------+ Best States ------------- Heat Dissipation 25 Energy Generation 10 Energy Capacity 250 Matter Stores 260 Matter Capacity 300 Sight Range 16 Terrain Scan Density 10 Core Shielding 20 Evasion (%) 50 Item Schematics ----------------- None Robot Schematics ------------------ None Fabricated ------------ Nothing Alien Tech Used ----------------- None Achievements -------------- None Challenges ------------ None Game ------ Seed TerrabombSingularityRifle Manual? 0 Play Time 00:06:56 Cumulative 9.0 hours Start 2020.09.23 @ 22:05:32 End 2020.09.23 @ 22:10:23 Sessions 1 Manual Loads 0 Difficulty Rogue Special Mode None Game No. 19 Rogue 19 Adventurer 0 Explorer 0 Win Type - Total 0 Types 0/0/0/0/0/0/0/0/0 Lore% 20 Gallery% 20 Achievement% 14 Wizard Run 0 Options --------- ASCII 0 Keyboard 0 Movement Mouse Keybinds 0 Fullscreen 1 Font 24/Smallcaps Map View 76x50 Tactical HUD 0 Map Filters NONE Filters NONE Steam 1 RUN: b0b9e307-6b34-4cfb-97e1-f33b735450a1